[Event "20th Prague Open 2022"]
[Site "Prague"]
[Date "2022.01.14"]
[Round "9.21"]
[White "Azhar, Puteri Munajjah Az-Z"]
[Black "Van Foreest, Machteld"]
[Result "1/2-1/2"]
[ECO "D45"]
[WhiteElo "2052"]
[BlackElo "2189"]
[Annotator "NA"]
[PlyCount "119"]
[EventDate "2022.01.07"]
[EventType "swiss"]
[EventCountry "CZE"]
[SourceTitle "playchess.com"]
[Source "ChessBase"]
[SourceQuality "1"]
[TimeControl "40/5400+30:1800+30"]

1. d4 {[%emt 0:00:03]} d5 {[%emt 0:10:33]} 2. c4 {[%emt 0:00:09]} c6 {[%emt 0:00:04]} 3. Nc3 {[%emt 0:00:16]} Nf6 {[%emt 0:00:04]} 4. Nf3 {[%emt 0:00:37]} e6 {[%emt 0:00:29]} 5. e3 {[%emt 0:00:59]} Bd6 {[%emt 0:01:33]} 6. Be2 {[%emt 0:00:50]} O-O {[%emt 0:00:16]} 7. Qc2 {[%emt 0:00:36]} Nbd7 {[%emt 0:09:44]} 8. O-O {[%emt 0:07:42]} b6 {[%emt 0:03:49]} 9. e4 {[%emt 0:04:14]} dxe4 {[%emt 0:01:17] 9...Nxe4 is more fashionable.} 10. Nxe4 {[%emt 0:00:07]} Be7 {[%emt 0:10:37]} 11. b3 {[%emt 0:13:52]} Nxe4 {[%emt 0:01:45]} 12. Qxe4 {[%emt 0:00:48]} Bb7 {[%emt 0:01:16] [#]} 13. Rd1 $146 {[%emt 0:02:25]} ({Predecessor:} 13. Bb2 Re8 14. Bd3 Nf6 15. Qh4 h6 16. Ne5 Nd7 17. Qe4 f5 18. Qe2 Nxe5 19. dxe5 Qc7 20. Bc3 Rad8 21. b4 Rd7 22. Rfd1 Red8 23. Bc2 {½-½ (23) Gonzalez Vega,A (2291)-Romero Nunez,W (2125) Havana 2010}) 13... Nf6 {[%emt 0:00:33]} 14. Qc2 {[%emt 0:02:24]} Qc7 {[%emt 0:01:19]} 15. Bb2 {[%emt 0:14:04]} Rfd8 {[%emt 0:00:41]} 16. c5 {[%emt 0:03:58]} Nd5 {[%emt 0:01:20]} 17. Ne5 {[%emt 0:04:56]} Bf6 {[%emt 0:07:37]} 18. Bf3 {[%emt 0:01:55]} Rac8 {[%emt 0:04:11]} 19. a3 {[%emt 0:01:28]} bxc5 {[%emt 0:09:08]} 20. Qxc5 {[%emt 0:00:16]} Be7 {[%emt 0:00:08]} 21. Qc2 {[%emt 0:00:35]} c5 {[%emt 0:00:50]} 22. dxc5 {[%emt 0:00:44]} Bd6 {[%emt 0:12:37]} 23. Re1 {[%emt 0:13:22]} Bxc5 {[%emt 0:03:36]} 24. b4 {[%emt 0:11:29]} Bb6 {[%emt 0:00:09]} 25. Qxc7 {[%emt 0:00:09]} Rxc7 {[%emt 0:00:08]} 26. Rac1 {[%emt 0:00:42]} Rxc1 {[%emt 0:00:25]} 27. Bxc1 {[%emt 0:03:44]} Rc8 {[%emt 0:01:10]} 28. Nd7 {[%emt 0:03:33]} Bd4 {[%emt 0:01:36]} 29. Be3 {[%emt 0:04:11]} Bb2 {[%emt 0:04:01]} 30. Bxa7 {[%emt 0:03:24]} Bxa3 {[%emt 0:01:15]} 31. b5 {[%emt 0:00:20]} Rc7 {[%emt 0:05:53]} 32. Ne5 {[%emt 0:00:36]} f6 {[%emt 0:02:38]} 33. Nd3 {[%emt 0:01:16]} Rc3 {[%emt 0:01:01]} 34. Bxd5 {[%emt 0:01:05]} (34. Be2 $1 $11 {remains equal.}) 34... exd5 {[%emt 0:01:05]} 35. Nf4 {[%emt 0:00:18]} Rb3 {[%emt 0:00:09]} 36. Ne6 {[%emt 0:00:35]} Rxb5 {[%emt 0:00:35]} 37. Nd8 {[%emt 0:00:10]} Be7 {[%emt 0:00:48]} 38. Ne6 {[%emt 0:00:18]} Ra5 {[%emt 0:01:48]} 39. Bd4 {[%emt 0:00:24] [#]} Kf7 {[%emt 0:01:36]} (39... Bd6 $1 $17 40. Nd8 Bc8) 40. Nxg7 {[%emt 0:00:24]} Bc8 {[%emt 0:01:20]} 41. Nh5 {[%emt 0:30:36]} Ra4 {[%emt 0:30:38]} 42. Bb2 {[%emt 0:00:00]} Ra2 {[%emt 0:00:00]} 43. Bd4 $1 {[%emt 0:00:00]} Ra4 {[%emt 0:00:00]} 44. Bb2 {[%emt 0:00:00]} Bg4 {[%emt 0:00:00]} 45. Ng3 {[%emt 0:00:00]} Bc5 {[%emt 0:00:00]} 46. Ra1 {[%emt 0:00:00]} (46. Rc1 $1 $11 {keeps the balance.} Rc4 47. Rxc4 dxc4 48. Kf1) 46... Rf4 {[%emt 0:00:00]} 47. Nh1 {[%emt 0:00:00]} Rb4 {[%emt 0:00:00]} 48. Bc3 {[%emt 0:00:00]} Rb3 {[%emt 0:00:00]} 49. Be1 {[%emt 0:00:00]} d4 {[%emt 0:00:00]} 50. f3 $17 {[%emt 0:00:00]} Be6 {[%emt 0:00:00]} 51. Bf2 {[%emt 0:00:00]} Rc3 {[%emt 0:00:00]} 52. Ng3 {[%emt 0:00:00]} f5 {[%emt 0:00:00]} 53. Ne2 {[%emt 0:00:00]} Rd3 {[%emt 0:00:00]} 54. Rc1 {[%emt 0:00:00]} Ba3 {[%emt 0:00:14]} 55. Rc7+ {[%emt 0:00:31]} Ke8 {[%emt 0:01:33]} 56. Bxd4 {[%emt 0:00:08]} Rd2 {[%emt 0:01:44]} 57. Kf2 {[%emt 0:00:08]} Bd6 {[%emt 0:01:39]} 58. Rc3 {[%emt 0:01:47]} Kd7 {[%emt 0:01:27]} 59. Ke3 {[%emt 0:01:32]} Ra2 {[%emt 0:00:03]} 60. Bc5 {[%emt 0:03:27]} 1/2-1/2